[Event "Titled Tuesday Blitz February 07 Early 2023"]
[White "Brilej, Jaka"]
[Black "Manukyan, Sargis A."]
[WhiteFideId "14618818"]
[BlackFideId "13303970"]
[WhiteElo "2321"]
[BlackElo "2158"]
[Result "0-1"]
[Round "10"]
[TimeControl "180+2"]
[Date "2023.02.07"]
[WhiteClock "0:00:15"]
[BlackClock "0:00:18"]

1. d4 {[%clk 0:03:00]}  d5 {[%clk 0:02:59]} 2. c4 {[%clk 0:03:00]}  e6 {[%clk 0:02:58]} 3. Nc3 {[%clk 0:02:59]}  Nf6 {[%clk 0:02:58]} 4. cxd5 {[%clk 0:02:59]}  exd5 {[%clk 0:02:58]} 5. Bg5 {[%clk 0:02:59]}  c6 {[%clk 0:02:50]} 6. e3 {[%clk 0:02:59]}  Qb6 {[%clk 0:02:50]} 7. Rb1 {[%clk 0:02:34]}  Ne4 {[%clk 0:02:46]} 8. Nxe4 {[%clk 0:02:32]}  dxe4 {[%clk 0:02:46]} 9. Qa4 {[%clk 0:02:21]}  Bb4+ {[%clk 0:02:40]} 10. Kd1 {[%clk 0:02:20]}  O-O {[%clk 0:02:27]} 11. a3 {[%clk 0:02:16]}  Bd6 {[%clk 0:02:26]} 12. Ne2 {[%clk 0:02:15]}  Be6 {[%clk 0:02:26]} 13. Nc1 {[%clk 0:02:10]}  Nd7 {[%clk 0:02:18]} 14. Bc4 {[%clk 0:02:07]}  Bg4+ {[%clk 0:02:04]} 15. Be2 {[%clk 0:02:01]}  Be6 {[%clk 0:01:59]} 16. Bc4 {[%clk 0:01:56]}  Bg4+ {[%clk 0:02:00]} 17. Be2 {[%clk 0:01:55]}  Bxe2+ {[%clk 0:02:00]} 18. Nxe2 {[%clk 0:01:49]}  Qc7 {[%clk 0:02:00]} 19. Bf4 {[%clk 0:01:49]}  Nb6 {[%clk 0:01:59]} 20. Qb4 {[%clk 0:01:30]}  Rfd8 {[%clk 0:01:29]} 21. Bxd6 {[%clk 0:01:23]}  Rxd6 {[%clk 0:01:28]} 22. Qd2 {[%clk 0:01:09]}  Nd5 {[%clk 0:01:22]} 23. Rc1 {[%clk 0:01:08]}  Qe7 {[%clk 0:01:21]} 24. Kc2 {[%clk 0:01:04]}  a5 {[%clk 0:01:19]} 25. Kb1 {[%clk 0:01:04]}  b5 {[%clk 0:01:18]} 26. Nc3 {[%clk 0:01:00]}  g6 {[%clk 0:01:05]} 27. Nxd5 {[%clk 0:00:59]}  cxd5 {[%clk 0:01:05]} 28. Rc5 {[%clk 0:00:58]}  b4 {[%clk 0:01:03]} 29. a4 {[%clk 0:00:59]}  Qd7 {[%clk 0:00:34]} 30. b3 {[%clk 0:00:51]}  Rc6 {[%clk 0:00:34]} 31. Rxc6 {[%clk 0:00:49]}  Qxc6 {[%clk 0:00:33]} 32. Rc1 {[%clk 0:00:49]}  Qa6 {[%clk 0:00:34]} 33. Rc5 {[%clk 0:00:45]}  Qf1+ {[%clk 0:00:31]} 34. Kb2 {[%clk 0:00:45]}  Qxg2 {[%clk 0:00:31]} 35. Rxd5 {[%clk 0:00:45]}  h5 {[%clk 0:00:29]} 36. Re5 {[%clk 0:00:32]}  Qxh2 {[%clk 0:00:29]} 37. Rxe4 {[%clk 0:00:33]}  Qc7 {[%clk 0:00:28]} 38. Re5 {[%clk 0:00:30]}  h4 {[%clk 0:00:27]} 39. Rc5 {[%clk 0:00:25]}  Qh2 {[%clk 0:00:26]} 40. d5 {[%clk 0:00:26]}  h3 {[%clk 0:00:23]} 41. d6 {[%clk 0:00:25]}  Rd8 {[%clk 0:00:22]} 42. d7 {[%clk 0:00:26]}  Qb8 {[%clk 0:00:13]} 43. f4 {[%clk 0:00:26]}  h2 {[%clk 0:00:12]} 44. Qxh2 {[%clk 0:00:25]}  Rxd7 {[%clk 0:00:12]} 45. Qc2 {[%clk 0:00:18]}  Kh7 {[%clk 0:00:11]} 46. f5 {[%clk 0:00:13]}  Qd8 {[%clk 0:00:10]} 47. fxg6+ {[%clk 0:00:13]}  fxg6 {[%clk 0:00:08]} 48. Qe4 {[%clk 0:00:12]}  Rd2+ {[%clk 0:00:07]} 49. Rc2 {[%clk 0:00:12]}  Qf6+ {[%clk 0:00:07]} 50. Kc1 {[%clk 0:00:11]}  Rxc2+ {[%clk 0:00:06]} 51. Qxc2 {[%clk 0:00:11]}  Qa1+ {[%clk 0:00:06]} 52. Kd2 {[%clk 0:00:11]}  Qe5 {[%clk 0:00:07]} 53. Qc4 {[%clk 0:00:10]}  Kh6 {[%clk 0:00:07]} 54. Qh4+ {[%clk 0:00:09]}  Kg7 {[%clk 0:00:07]} 55. Qc4 {[%clk 0:00:10]}  Qb2+ {[%clk 0:00:07]} 56. Kd3 {[%clk 0:00:10]}  Qb1+ {[%clk 0:00:08]} 57. Ke2 {[%clk 0:00:10]}  Qb2+ {[%clk 0:00:07]} 58. Kf3 {[%clk 0:00:11]}  Qf6+ {[%clk 0:00:08]} 59. Ke2 {[%clk 0:00:11]}  Qb2+ {[%clk 0:00:08]} 60. Kf3 {[%clk 0:00:11]}  Qe5 {[%clk 0:00:08]} 61. Ke2 {[%clk 0:00:08]}  g5 {[%clk 0:00:09]} 62. Kf3 {[%clk 0:00:08]}  Kf6 {[%clk 0:00:10]} 63. Qc6+ {[%clk 0:00:08]}  Kg7 {[%clk 0:00:10]} 64. Qc4 {[%clk 0:00:08]}  Kg6 {[%clk 0:00:10]} 65. Qc6+ {[%clk 0:00:08]}  Qf6+ {[%clk 0:00:10]} 66. Qxf6+ {[%clk 0:00:06]}  Kxf6 {[%clk 0:00:11]} 67. Kg4 {[%clk 0:00:06]}  Ke5 {[%clk 0:00:09]} 68. Kxg5 {[%clk 0:00:07]}  Ke4 {[%clk 0:00:10]} 69. Kf6 {[%clk 0:00:07]}  Kxe3 {[%clk 0:00:11]} 70. Ke5 {[%clk 0:00:08]}  Kd3 {[%clk 0:00:12]} 71. Kd5 {[%clk 0:00:09]}  Kc3 {[%clk 0:00:13]} 72. Kc5 {[%clk 0:00:10]}  Kxb3 {[%clk 0:00:14]} 73. Kb5 {[%clk 0:00:11]}  Ka3 {[%clk 0:00:14]} 74. Kxa5 {[%clk 0:00:12]}  b3 {[%clk 0:00:15]} 75. Kb6 {[%clk 0:00:12]}  b2 {[%clk 0:00:16]} 76. a5 {[%clk 0:00:13]}  b1=Q+ {[%clk 0:00:17]} 77. Ka7 {[%clk 0:00:14]}  Qb5 {[%clk 0:00:17]} 78. a6 {[%clk 0:00:14]}  Ka4 {[%clk 0:00:17]} 79. Ka8 {[%clk 0:00:15]}  Qxa6+ {[%clk 0:00:18]} 0-1


[Site "https://www.chess.com"]

[Event "Titled Tuesday Blitz February 07 Early 2023"]
[White "Sanchez, Sebastian Felipe"]
[Black "Pein, Jonathan"]
[WhiteFideId "4403304"]
[BlackFideId "417092"]
[WhiteElo "2427"]
[BlackElo "2265"]
[Result "1-0"]
[Round "10"]
[TimeControl "180+2"]
[Date "2023.02.07"]
[WhiteClock "0:00:05"]
[BlackClock "0:00:02"]

1. d4 {[%clk 0:03:00]}  d6 {[%clk 0:02:55]} 2. Nf3 {[%clk 0:02:59]}  g6 {[%clk 0:02:54]} 3. c4 {[%clk 0:02:58]}  Bg7 {[%clk 0:02:54]} 4. Nc3 {[%clk 0:02:59]}  Nf6 {[%clk 0:02:55]} 5. h3 {[%clk 0:02:57]}  O-O {[%clk 0:02:55]} 6. e4 {[%clk 0:02:58]}  b6 {[%clk 0:02:55]} 7. Be3 {[%clk 0:02:54]}  Bb7 {[%clk 0:02:56]} 8. Bd3 {[%clk 0:02:53]}  Nc6 {[%clk 0:02:55]} 9. g4 {[%clk 0:02:49]}  Na5 {[%clk 0:02:55]} 10. Qe2 {[%clk 0:02:43]}  e6 {[%clk 0:02:44]} 11. b4 {[%clk 0:02:39]}  Nc6 {[%clk 0:02:43]} 12. a3 {[%clk 0:02:38]}  Re8 {[%clk 0:02:42]} 13. Kd2 {[%clk 0:02:32]}  e5 {[%clk 0:02:42]} 14. d5 {[%clk 0:02:32]}  Nd4 {[%clk 0:02:42]} 15. Bxd4 {[%clk 0:02:25]}  exd4 {[%clk 0:02:43]} 16. Nb5 {[%clk 0:02:25]}  c5 {[%clk 0:02:41]} 17. dxc6 {[%clk 0:02:25]}  Bxc6 {[%clk 0:02:42]} 18. Nfxd4 {[%clk 0:01:54]}  Bxe4 {[%clk 0:02:36]} 19. Rhe1 {[%clk 0:01:49]}  d5 {[%clk 0:02:32]} 20. f3 {[%clk 0:01:39]}  Bxd3 {[%clk 0:02:31]} 21. Qxd3 {[%clk 0:01:39]}  a6 {[%clk 0:02:18]} 22. Nc3 {[%clk 0:01:16]}  dxc4 {[%clk 0:02:14]} 23. Qxc4 {[%clk 0:01:16]}  Rc8 {[%clk 0:02:01]} 24. Qd3 {[%clk 0:01:16]}  Qd6 {[%clk 0:01:33]} 25. Rxe8+ {[%clk 0:01:03]}  Nxe8 {[%clk 0:01:33]} 26. Nde2 {[%clk 0:01:00]}  Qh2 {[%clk 0:01:16]} 27. Rc1 {[%clk 0:00:56]}  Bh6+ {[%clk 0:01:10]} 28. f4 {[%clk 0:00:54]}  Bxf4+ {[%clk 0:01:08]} 29. Kc2 {[%clk 0:00:52]}  Bxc1 {[%clk 0:01:03]} 30. Kxc1 {[%clk 0:00:52]}  Nf6 {[%clk 0:01:00]} 31. Kb2 {[%clk 0:00:51]}  b5 {[%clk 0:00:47]} 32. Kb3 {[%clk 0:00:47]}  Qc7 {[%clk 0:00:42]} 33. Qf3 {[%clk 0:00:42]}  Qc4+ {[%clk 0:00:34]} 34. Kb2 {[%clk 0:00:42]}  Qc6 {[%clk 0:00:35]} 35. Qd3 {[%clk 0:00:35]}  h5 {[%clk 0:00:28]} 36. g5 {[%clk 0:00:34]}  Nd7 {[%clk 0:00:29]} 37. Nd5 {[%clk 0:00:31]}  Re8 {[%clk 0:00:20]} 38. Nec3 {[%clk 0:00:28]}  Qc4 {[%clk 0:00:16]} 39. Qg3 {[%clk 0:00:21]}  Re2+ {[%clk 0:00:10]} 40. Nxe2 {[%clk 0:00:20]}  Qxe2+ {[%clk 0:00:11]} 41. Kc1 {[%clk 0:00:20]}  Qc4+ {[%clk 0:00:10]} 42. Nc3 {[%clk 0:00:20]}  Nb6 {[%clk 0:00:09]} 43. Kb2 {[%clk 0:00:17]}  Na4+ {[%clk 0:00:06]} 44. Nxa4 {[%clk 0:00:17]}  bxa4 {[%clk 0:00:07]} 45. h4 {[%clk 0:00:14]}  Qg4 {[%clk 0:00:06]} 46. Qb8+ {[%clk 0:00:09]}  Kh7 {[%clk 0:00:05]} 47. Qc7 {[%clk 0:00:09]}  Qg2+ {[%clk 0:00:04]} 48. Kc3 {[%clk 0:00:07]}  Qf3+ {[%clk 0:00:04]} 49. Kd4 {[%clk 0:00:07]}  Qf4+ {[%clk 0:00:01]} 50. Qxf4 {[%clk 0:00:06]}  f5 {[%clk 0:00:02]} 51. Qc7+ {[%clk 0:00:05]} 1-0


[Site "https://www.chess.com"]

[Event "Titled Tuesday Blitz February 07 Early 2023"]
[White "Jaskolka, Tomasz"]
[Black "Kuderinov, Kirill"]
[WhiteFideId "1170791"]
[BlackFideId "13701568"]
[WhiteElo "2238"]
[BlackElo "2404"]
[Result "1-0"]
[Round "10"]
[TimeControl "180+2"]
[Date "2023.02.07"]
[WhiteClock "0:00:12"]
[BlackClock "0:00:03"]

1. e4 {[%clk 0:03:00]}  c5 {[%clk 0:02:59]} 2. Nf3 {[%clk 0:02:59]}  Nc6 {[%clk 0:02:59]} 3. a3 {[%clk 0:02:59]}  g6 {[%clk 0:02:57]} 4. b4 {[%clk 0:03:00]}  Bg7 {[%clk 0:02:55]} 5. c3 {[%clk 0:03:00]}  cxb4 {[%clk 0:02:49]} 6. axb4 {[%clk 0:03:00]}  Nxb4 {[%clk 0:02:49]} 7. d4 {[%clk 0:03:00]}  Nc6 {[%clk 0:02:47]} 8. Bc4 {[%clk 0:03:00]}  Nf6 {[%clk 0:02:35]} 9. e5 {[%clk 0:02:58]}  Ne4 {[%clk 0:02:36]} 10. Nbd2 {[%clk 0:02:37]}  d5 {[%clk 0:02:17]} 11. Nxe4 {[%clk 0:02:31]}  dxc4 {[%clk 0:02:06]} 12. Qa4 {[%clk 0:02:26]}  Be6 {[%clk 0:01:45]} 13. Nc5 {[%clk 0:02:19]}  Bd5 {[%clk 0:01:45]} 14. Nxb7 {[%clk 0:02:17]}  Qc7 {[%clk 0:01:45]} 15. Na5 {[%clk 0:02:10]}  O-O {[%clk 0:01:41]} 16. Nxc6 {[%clk 0:02:04]}  Bxc6 {[%clk 0:01:40]} 17. Qxc4 {[%clk 0:02:02]}  Qd7 {[%clk 0:01:41]} 18. Qd3 {[%clk 0:01:59]}  Qe6 {[%clk 0:01:17]} 19. O-O {[%clk 0:01:42]}  Rfd8 {[%clk 0:01:18]} 20. Ba3 {[%clk 0:01:27]}  h6 {[%clk 0:01:01]} 21. Bc5 {[%clk 0:01:23]}  a5 {[%clk 0:00:59]} 22. Rfe1 {[%clk 0:01:18]}  a4 {[%clk 0:00:59]} 23. Nd2 {[%clk 0:01:16]}  Qd5 {[%clk 0:00:52]} 24. Qg3 {[%clk 0:00:54]}  Qd7 {[%clk 0:00:25]} 25. e6 {[%clk 0:00:52]}  Qe8 {[%clk 0:00:17]} 26. exf7+ {[%clk 0:00:49]}  Qxf7 {[%clk 0:00:18]} 27. Rxe7 {[%clk 0:00:49]}  Qf5 {[%clk 0:00:19]} 28. Qc7 {[%clk 0:00:36]}  Qf6 {[%clk 0:00:12]} 29. Rxg7+ {[%clk 0:00:33]}  Qxg7 {[%clk 0:00:12]} 30. Qxc6 {[%clk 0:00:33]}  Rac8 {[%clk 0:00:12]} 31. Qb5 {[%clk 0:00:24]}  Qf7 {[%clk 0:00:06]} 32. h3 {[%clk 0:00:21]}  Qf4 {[%clk 0:00:04]} 33. Nf3 {[%clk 0:00:19]}  Qf5 {[%clk 0:00:04]} 34. Qc4+ {[%clk 0:00:18]}  Kh8 {[%clk 0:00:03]} 35. Rxa4 {[%clk 0:00:17]}  Qb1+ {[%clk 0:00:03]} 36. Kh2 {[%clk 0:00:17]}  Qf5 {[%clk 0:00:04]} 37. Ra7 {[%clk 0:00:17]}  Qf4+ {[%clk 0:00:04]} 38. Kg1 {[%clk 0:00:15]}  Rxc5 {[%clk 0:00:02]} 39. Qxc5 {[%clk 0:00:13]}  Qc1+ {[%clk 0:00:03]} 40. Kh2 {[%clk 0:00:13]}  Qf4+ {[%clk 0:00:03]} 41. g3 {[%clk 0:00:12]} 1-0


[Site "https://www.chess.com"]

[Event "Titled Tuesday Blitz February 07 Early 2023"]
[White "Toczek, Grzegorz"]
[Black "Borgaonkar Akshay"]
[WhiteFideId "1106457"]
[BlackFideId "25639110"]
[WhiteElo "2260"]
[BlackElo "1991"]
[Result "0-1"]
[Round "10"]
[TimeControl "180+2"]
[Date "2023.02.07"]
[WhiteClock "0:00:11"]
[BlackClock "0:00:23"]

1. d4 {[%clk 0:03:00]}  Nf6 {[%clk 0:02:59]} 2. Nf3 {[%clk 0:03:01]}  e6 {[%clk 0:03:00]} 3. Bf4 {[%clk 0:03:00]}  c5 {[%clk 0:02:55]} 4. e3 {[%clk 0:02:49]}  cxd4 {[%clk 0:02:54]} 5. exd4 {[%clk 0:02:49]}  Nc6 {[%clk 0:02:55]} 6. c3 {[%clk 0:02:43]}  d5 {[%clk 0:02:55]} 7. Bd3 {[%clk 0:02:41]}  Bd6 {[%clk 0:02:55]} 8. Bxd6 {[%clk 0:02:38]}  Qxd6 {[%clk 0:02:56]} 9. O-O {[%clk 0:02:38]}  O-O {[%clk 0:02:56]} 10. Nbd2 {[%clk 0:02:36]}  a6 {[%clk 0:02:56]} 11. Re1 {[%clk 0:02:36]}  b5 {[%clk 0:02:54]} 12. Qe2 {[%clk 0:02:34]}  Bb7 {[%clk 0:02:54]} 13. Ne5 {[%clk 0:02:34]}  Ne7 {[%clk 0:02:44]} 14. Ndf3 {[%clk 0:02:30]}  Ng6 {[%clk 0:02:44]} 15. Nxg6 {[%clk 0:02:29]}  hxg6 {[%clk 0:02:43]} 16. Ne5 {[%clk 0:02:29]}  Nd7 {[%clk 0:02:40]} 17. f4 {[%clk 0:02:17]}  Nxe5 {[%clk 0:02:38]} 18. fxe5 {[%clk 0:02:17]}  Qe7 {[%clk 0:02:39]} 19. Qg4 {[%clk 0:02:14]}  Rfc8 {[%clk 0:02:33]} 20. Re3 {[%clk 0:02:14]}  b4 {[%clk 0:02:32]} 21. cxb4 {[%clk 0:01:24]}  Qxb4 {[%clk 0:02:31]} 22. Rf1 {[%clk 0:01:22]}  Qd2 {[%clk 0:02:17]} 23. Rh3 {[%clk 0:01:20]}  Rc1 {[%clk 0:02:03]} 24. Qh4 {[%clk 0:01:09]}  Rxf1+ {[%clk 0:02:03]} 25. Bxf1 {[%clk 0:01:09]}  Kf8 {[%clk 0:01:54]} 26. Qh8+ {[%clk 0:01:00]}  Ke7 {[%clk 0:01:54]} 27. Qxg7 {[%clk 0:01:01]}  Qxd4+ {[%clk 0:01:54]} 28. Kh1 {[%clk 0:01:01]}  Rf8 {[%clk 0:01:26]} 29. Qf6+ {[%clk 0:00:58]}  Ke8 {[%clk 0:01:23]} 30. Rc3 {[%clk 0:00:56]}  Qb6 {[%clk 0:01:12]} 31. h3 {[%clk 0:00:43]}  d4 {[%clk 0:01:05]} 32. Rb3 {[%clk 0:00:43]}  Qc6 {[%clk 0:01:05]} 33. Qf4 {[%clk 0:00:39]}  Qd5 {[%clk 0:00:58]} 34. Rd3 {[%clk 0:00:32]}  g5 {[%clk 0:00:54]} 35. Qd2 {[%clk 0:00:23]}  Qxe5 {[%clk 0:00:49]} 36. Rxd4 {[%clk 0:00:24]}  Bd5 {[%clk 0:00:43]} 37. Bxa6 {[%clk 0:00:21]}  Rh8 {[%clk 0:00:43]} 38. Bb5+ {[%clk 0:00:20]}  Kf8 {[%clk 0:00:44]} 39. Rg4 {[%clk 0:00:19]}  Rxh3+ {[%clk 0:00:44]} 40. Kg1 {[%clk 0:00:18]}  Qh2+ {[%clk 0:00:43]} 41. Kf2 {[%clk 0:00:18]}  Rh4 {[%clk 0:00:30]} 42. Qxg5 {[%clk 0:00:16]}  Rxg4 {[%clk 0:00:28]} 43. Qxg4 {[%clk 0:00:16]}  Qe5 {[%clk 0:00:27]} 44. Qb4+ {[%clk 0:00:13]}  Kg8 {[%clk 0:00:27]} 45. a4 {[%clk 0:00:12]}  Qf6+ {[%clk 0:00:25]} 46. Kg1 {[%clk 0:00:12]}  Qg5 {[%clk 0:00:25]} 47. a5 {[%clk 0:00:11]}  Qxg2# {[%clk 0:00:23]} 0-1


[Site "https://www.chess.com"]

[Event "Titled Tuesday Blitz February 07 Early 2023"]
[White "Korchmar, Vasiliy"]
[Black "Mamedov, Edgar"]
[WhiteFideId "24131750"]
[BlackFideId "13739980"]
[WhiteElo "2438"]
[BlackElo "2193"]
[Result "0-1"]
[Round "10"]
[TimeControl "180+2"]
[Date "2023.02.07"]
[WhiteClock "0:01:36"]
[BlackClock "0:01:10"]

1. e4 {[%clk 0:02:56]}  c5 {[%clk 0:02:58]} 2. Nf3 {[%clk 0:02:56]}  e6 {[%clk 0:02:58]} 3. g3 {[%clk 0:02:55]}  Nc6 {[%clk 0:02:56]} 4. Bg2 {[%clk 0:02:55]}  Nf6 {[%clk 0:02:54]} 5. Qe2 {[%clk 0:02:54]}  d6 {[%clk 0:02:51]} 6. O-O {[%clk 0:02:53]}  Be7 {[%clk 0:02:51]} 7. c3 {[%clk 0:02:53]}  O-O {[%clk 0:02:50]} 8. d4 {[%clk 0:02:50]}  cxd4 {[%clk 0:02:50]} 9. cxd4 {[%clk 0:02:51]}  d5 {[%clk 0:02:50]} 10. e5 {[%clk 0:02:51]}  Ne4 {[%clk 0:02:50]} 11. Nbd2 {[%clk 0:02:51]}  Nxd2 {[%clk 0:02:49]} 12. Bxd2 {[%clk 0:02:52]}  Qb6 {[%clk 0:02:49]} 13. Bc3 {[%clk 0:02:52]}  Bd7 {[%clk 0:02:49]} 14. h4 {[%clk 0:02:51]}  Bb4 {[%clk 0:02:46]} 15. h5 {[%clk 0:02:51]}  Bxc3 {[%clk 0:02:45]} 16. bxc3 {[%clk 0:02:52]}  h6 {[%clk 0:02:44]} 17. g4 {[%clk 0:02:50]}  Ne7 {[%clk 0:02:42]} 18. g5 {[%clk 0:02:45]}  Bb5 {[%clk 0:02:40]} 19. Qe3 {[%clk 0:02:43]}  Nf5 {[%clk 0:02:37]} 20. Qf4 {[%clk 0:02:42]}  Bxf1 {[%clk 0:02:37]} 21. Bxf1 {[%clk 0:02:41]}  Kh8 {[%clk 0:02:25]} 22. Bd3 {[%clk 0:02:40]}  Rac8 {[%clk 0:02:23]} 23. Bxf5 {[%clk 0:02:37]}  exf5 {[%clk 0:02:23]} 24. gxh6 {[%clk 0:02:38]}  Qxh6 {[%clk 0:02:21]} 25. Qxf5 {[%clk 0:02:37]}  Rxc3 {[%clk 0:02:19]} 26. Ng5 {[%clk 0:02:37]}  Kg8 {[%clk 0:02:02]} 27. Kg2 {[%clk 0:02:30]}  Rc6 {[%clk 0:01:29]} 28. Rh1 {[%clk 0:02:20]}  f6 {[%clk 0:01:26]} 29. Ne6 {[%clk 0:02:19]}  Re8 {[%clk 0:01:23]} 30. Nf4 {[%clk 0:02:14]}  fxe5 {[%clk 0:01:19]} 31. dxe5 {[%clk 0:02:15]}  Rf8 {[%clk 0:01:17]} 32. Nxd5 {[%clk 0:01:38]}  Rxf5 {[%clk 0:01:14]} 33. Ne7+ {[%clk 0:01:39]}  Kh7 {[%clk 0:01:11]} 34. Nxf5 {[%clk 0:01:40]}  Qg5+ {[%clk 0:01:11]} 35. Ng3 {[%clk 0:01:35]}  Qxe5 {[%clk 0:01:10]} 36. h6 {[%clk 0:01:36]} 0-1


[Site "https://www.chess.com"]

[Event "Titled Tuesday Blitz February 07 Early 2023"]
[White "Plazuelo Pascual, Juan"]
[Black "Ilinca Ilinca, Felix Antonio"]
[WhiteFideId "32059566"]
[BlackFideId "54764998"]
[WhiteElo "2449"]
[BlackElo "2266"]
[Result "0-1"]
[Round "10"]
[TimeControl "180+2"]
[Date "2023.02.07"]
[WhiteClock "0:00:35"]
[BlackClock "0:00:38"]

1. e4 {[%clk 0:03:00]}  c5 {[%clk 0:02:59]} 2. Nf3 {[%clk 0:03:00]}  e6 {[%clk 0:02:58]} 3. c3 {[%clk 0:03:01]}  Nf6 {[%clk 0:02:57]} 4. e5 {[%clk 0:03:01]}  Nd5 {[%clk 0:02:57]} 5. d4 {[%clk 0:03:02]}  cxd4 {[%clk 0:02:57]} 6. cxd4 {[%clk 0:03:03]}  d6 {[%clk 0:02:54]} 7. Bc4 {[%clk 0:03:03]}  Be7 {[%clk 0:02:53]} 8. O-O {[%clk 0:03:03]}  O-O {[%clk 0:02:51]} 9. Qe2 {[%clk 0:03:04]}  Bd7 {[%clk 0:02:17]} 10. Bxd5 {[%clk 0:02:57]}  exd5 {[%clk 0:02:16]} 11. Nc3 {[%clk 0:02:57]}  Be6 {[%clk 0:02:12]} 12. Bf4 {[%clk 0:02:57]}  Nc6 {[%clk 0:02:06]} 13. exd6 {[%clk 0:02:56]}  Bxd6 {[%clk 0:02:03]} 14. Bxd6 {[%clk 0:02:57]}  Qxd6 {[%clk 0:02:04]} 15. h3 {[%clk 0:02:55]}  Rfe8 {[%clk 0:01:53]} 16. Rfe1 {[%clk 0:02:55]}  f6 {[%clk 0:01:47]} 17. Qd2 {[%clk 0:02:45]}  Bf7 {[%clk 0:01:43]} 18. Nb5 {[%clk 0:02:41]}  Qd7 {[%clk 0:01:39]} 19. Qf4 {[%clk 0:02:42]}  Rxe1+ {[%clk 0:01:32]} 20. Rxe1 {[%clk 0:02:41]}  Nb4 {[%clk 0:01:28]} 21. Nc7 {[%clk 0:02:04]}  Nd3 {[%clk 0:01:22]} 22. Qg3 {[%clk 0:01:48]}  Rc8 {[%clk 0:01:20]} 23. Rd1 {[%clk 0:01:36]}  Bg6 {[%clk 0:01:18]} 24. Nh4 {[%clk 0:01:31]}  Nxb2 {[%clk 0:01:09]} 25. Rc1 {[%clk 0:01:21]}  Nc4 {[%clk 0:01:06]} 26. Nxg6 {[%clk 0:00:57]}  hxg6 {[%clk 0:01:05]} 27. Qxg6 {[%clk 0:00:58]}  Rxc7 {[%clk 0:01:04]} 28. Re1 {[%clk 0:00:58]}  Rc8 {[%clk 0:00:50]} 29. h4 {[%clk 0:00:57]}  Nd6 {[%clk 0:00:49]} 30. h5 {[%clk 0:00:57]}  Qf5 {[%clk 0:00:49]} 31. Qg3 {[%clk 0:00:56]}  Ne4 {[%clk 0:00:49]} 32. Qe3 {[%clk 0:00:55]}  Qxh5 {[%clk 0:00:48]} 33. f3 {[%clk 0:00:55]}  Ng5 {[%clk 0:00:48]} 34. Qe7 {[%clk 0:00:35]}  Qg6 {[%clk 0:00:44]} 35. Qd6 {[%clk 0:00:36]}  Nxf3+ {[%clk 0:00:44]} 36. Kf2 {[%clk 0:00:35]}  Rc2+ {[%clk 0:00:38]} 0-1


[Site "https://www.chess.com"]

[Event "Titled Tuesday Blitz February 07 Early 2023"]
[White "Cori T., Deysi"]
[Black "Babikov, Ivan"]
[WhiteFideId "3801934"]
[BlackFideId "4161106"]
[WhiteElo "2362"]
[BlackElo "2239"]
[Result "1-0"]
[Round "10"]
[TimeControl "180+2"]
[Date "2023.02.07"]
[WhiteClock "0:01:13"]
[BlackClock "0:00:01"]

1. e4 {[%clk 0:02:57]}  c6 {[%clk 0:02:59]} 2. c4 {[%clk 0:02:56]}  d5 {[%clk 0:02:57]} 3. exd5 {[%clk 0:02:56]}  cxd5 {[%clk 0:02:58]} 4. cxd5 {[%clk 0:02:56]}  Qxd5 {[%clk 0:02:58]} 5. Nc3 {[%clk 0:02:55]}  Qd8 {[%clk 0:02:57]} 6. d4 {[%clk 0:02:55]}  Nf6 {[%clk 0:02:57]} 7. Nf3 {[%clk 0:02:55]}  Bf5 {[%clk 0:02:54]} 8. Bb5+ {[%clk 0:02:54]}  Nbd7 {[%clk 0:02:52]} 9. O-O {[%clk 0:02:51]}  e6 {[%clk 0:02:52]} 10. Ne5 {[%clk 0:02:51]}  a6 {[%clk 0:02:44]} 11. Nxd7 {[%clk 0:02:50]}  Nxd7 {[%clk 0:02:39]} 12. Ba4 {[%clk 0:02:50]}  Bd6 {[%clk 0:02:39]} 13. d5 {[%clk 0:02:47]}  Qe7 {[%clk 0:02:28]} 14. dxe6 {[%clk 0:02:46]}  fxe6 {[%clk 0:02:28]} 15. Bg5 {[%clk 0:02:35]}  Qxg5 {[%clk 0:02:14]} 16. Qxd6 {[%clk 0:02:34]}  Qe7 {[%clk 0:02:14]} 17. Rad1 {[%clk 0:02:30]}  Qxd6 {[%clk 0:02:08]} 18. Rxd6 {[%clk 0:02:30]}  b5 {[%clk 0:02:08]} 19. Nxb5 {[%clk 0:02:25]}  axb5 {[%clk 0:02:06]} 20. Bxb5 {[%clk 0:02:26]}  O-O {[%clk 0:01:59]} 21. Rxd7 {[%clk 0:02:23]}  Rxa2 {[%clk 0:01:57]} 22. b3 {[%clk 0:02:20]}  Rb2 {[%clk 0:01:47]} 23. Bc4 {[%clk 0:02:18]}  Rb8 {[%clk 0:01:42]} 24. h3 {[%clk 0:02:17]}  Kh8 {[%clk 0:01:38]} 25. Re1 {[%clk 0:02:16]}  Bc2 {[%clk 0:01:22]} 26. Rd2 {[%clk 0:02:15]}  Rb1 {[%clk 0:01:08]} 27. Rxb1 {[%clk 0:02:14]}  Bxb1 {[%clk 0:01:09]} 28. Bxe6 {[%clk 0:02:15]}  g6 {[%clk 0:01:07]} 29. g4 {[%clk 0:02:11]}  Kg7 {[%clk 0:01:06]} 30. g5 {[%clk 0:02:11]}  Be4 {[%clk 0:01:03]} 31. h4 {[%clk 0:02:10]}  Ra8 {[%clk 0:01:01]} 32. f4 {[%clk 0:02:06]}  Ra1+ {[%clk 0:01:01]} 33. Kf2 {[%clk 0:02:06]}  Rh1 {[%clk 0:01:01]} 34. Ke3 {[%clk 0:02:06]}  Bc6 {[%clk 0:00:54]} 35. Rc2 {[%clk 0:02:04]}  Bb5 {[%clk 0:00:52]} 36. Rc7+ {[%clk 0:02:04]}  Kf8 {[%clk 0:00:51]} 37. Rf7+ {[%clk 0:02:03]}  Ke8 {[%clk 0:00:51]} 38. Rb7 {[%clk 0:01:59]}  Bc6 {[%clk 0:00:44]} 39. Bf7+ {[%clk 0:01:59]}  Kf8 {[%clk 0:00:44]} 40. Rc7 {[%clk 0:01:59]}  Rxh4 {[%clk 0:00:40]} 41. Bxg6 {[%clk 0:01:57]}  Bd5 {[%clk 0:00:18]} 42. Bxh7 {[%clk 0:01:52]}  Bxb3 {[%clk 0:00:18]} 43. Bf5 {[%clk 0:01:50]}  Bf7 {[%clk 0:00:14]} 44. g6 {[%clk 0:01:49]}  Bd5 {[%clk 0:00:12]} 45. Rd7 {[%clk 0:01:36]}  Bb3 {[%clk 0:00:10]} 46. Be4 {[%clk 0:01:30]}  Bc4 {[%clk 0:00:05]} 47. f5 {[%clk 0:01:15]}  Rh3+ {[%clk 0:00:03]} 48. Kd4 {[%clk 0:01:14]}  Ba2 {[%clk 0:00:03]} 49. f6 {[%clk 0:01:14]}  Rh1 {[%clk 0:00:01]} 50. Rd8# {[%clk 0:01:13]} 1-0


[Site "https://www.chess.com"]